[Event "*** MasterClass Titled Tuesday Blitz"]
[Site "Chess.com"]
[Date "2017.12.12"]
[Round "2"]
[White "kleinebeer98"]
[Black "Arm-Akiba"]
[Result "0-1"]
[WhiteElo "2502"]
[BlackElo "2689"]
[TimeControl "180+2"]
[EndTime "13:26:27 PST"]
[Termination "Arm-Akiba won by resignation"]

1. e4 {[%clk 0:03:01.9]} 1... e5 {[%clk 0:02:59.8]} 2. Nf3 {[%clk 0:03:01.8]}
2... Nc6 {[%clk 0:02:59.8]} 3. Bb5 {[%clk 0:03:02.3]} 3... a6 {[%clk 0:02:59.7]}
4. Ba4 {[%clk 0:03:03.2]} 4... Nf6 {[%clk 0:03:00.6]} 5. d3 {[%clk 0:03:00]}
5... Bc5 {[%clk 0:02:57.6]} 6. Bxc6 {[%clk 0:03:01.2]} 6... dxc6 {[%clk
0:02:58.2]} 7. h3 {[%clk 0:03:02.7]} 7... Bd6 {[%clk 0:02:49.8]} 8. O-O {[%clk
0:03:02.9]} 8... O-O {[%clk 0:02:47.4]} 9. Nbd2 {[%clk 0:03:02]} 9... Be6 {[%clk
0:02:48]} 10. b3 {[%clk 0:03:01.1]} 10... Nd7 {[%clk 0:02:47.6]} 11. Nc4 {[%clk
0:02:57.7]} 11... Bxc4 {[%clk 0:02:47.5]} 12. dxc4 {[%clk 0:02:43.3]} 12... Qe7
{[%clk 0:02:43.9]} 13. Bg5 {[%clk 0:02:37.8]} 13... Qe6 {[%clk 0:02:41.1]} 14.
Nh4 {[%clk 0:02:34.1]} 14... g6 {[%clk 0:02:37]} 15. Bh6 {[%clk 0:02:25.3]}
15... Rfe8 {[%clk 0:02:37.2]} 16. Qf3 {[%clk 0:02:16.3]} 16... Nf6 {[%clk
0:02:20.3]} 17. Rad1 {[%clk 0:01:56.8]} 17... Nh5 {[%clk 0:02:05.8]} 18. Nf5
{[%clk 0:01:51]} 18... gxf5 {[%clk 0:02:05.3]} 19. Qxh5 {[%clk 0:01:48]} 19...
Qg6 {[%clk 0:02:05.4]} 20. Qh4 {[%clk 0:01:34.7]} 20... Be7 {[%clk 0:02:00.4]}
21. exf5 {[%clk 0:01:35.8]} 21... Bxh4 {[%clk 0:01:57.2]} 22. fxg6 {[%clk
0:01:36.7]} 22... hxg6 {[%clk 0:01:58.4]} 23. Rd7 {[%clk 0:01:32.6]} 23... Rac8
{[%clk 0:01:52.3]} 24. Rfd1 {[%clk 0:01:30.2]} 24... Be7 {[%clk 0:01:48.7]} 25.
Be3 {[%clk 0:01:23.3]} 25... f6 {[%clk 0:01:47.5]} 26. f3 {[%clk 0:01:20.4]}
26... Kf7 {[%clk 0:01:47.8]} 27. Kf2 {[%clk 0:01:18.7]} 27... Ke6 {[%clk
0:01:48.1]} 28. f4 {[%clk 0:01:18.3]} 28... e4 {[%clk 0:01:44.5]} 29. c5 {[%clk
0:01:12.4]} 29... f5 {[%clk 0:01:42.7]} 30. Ke2 {[%clk 0:01:05.8]} 30... Red8
{[%clk 0:01:42.7]} 31. Rxd8 {[%clk 0:00:57.5]} 31... Bxd8 {[%clk 0:01:43.8]} 32.
c4 {[%clk 0:00:48.7]} 32... Be7 {[%clk 0:01:42.2]} 33. Rd2 {[%clk 0:00:47.1]}
33... Rb8 {[%clk 0:01:39.4]} 34. Rd1 {[%clk 0:00:45.5]} 34... b5 {[%clk
0:01:40.1]} 35. cxb6 {[%clk 0:00:45.3]} 35... cxb6 {[%clk 0:01:40.8]} 36. Rd2
{[%clk 0:00:44]} 36... b5 {[%clk 0:01:30.5]} 37. Rc2 {[%clk 0:00:43.9]} 37... b4
{[%clk 0:01:29.9]} 38. Rd2 {[%clk 0:00:41]} 38... a5 {[%clk 0:01:31.1]} 39. Kd1
{[%clk 0:00:30.2]} 39... a4 {[%clk 0:01:30.9]} 40. Kc2 {[%clk 0:00:30.8]} 40...
Ra8 {[%clk 0:01:31.9]} 41. Kb2 {[%clk 0:00:30.9]} 41... Bf6+ {[%clk 0:01:32.3]}
42. Kc2 {[%clk 0:00:30.4]} 42... Bc3 {[%clk 0:01:16.1]} 43. Re2 {[%clk
0:00:17.6]} 43... axb3+ {[%clk 0:01:17.1]} 44. axb3 {[%clk 0:00:19.4]} 44...
Ra2+ {[%clk 0:01:16.1]} 45. Kd1 {[%clk 0:00:20.6]} 45... Ra1+ {[%clk 0:01:14.9]}
46. Kc2 {[%clk 0:00:21.9]} 46... Rf1 {[%clk 0:01:08.2]} 47. Bc1 {[%clk
0:00:14.8]} 47... c5 {[%clk 0:01:02.9]} 48. Be3 {[%clk 0:00:13.3]} 48... Bd4
{[%clk 0:01:04]} 49. Bd2 {[%clk 0:00:14.3]} 49... Ra1 {[%clk 0:01:00.1]} 50. Bc1
{[%clk 0:00:13.8]} 50... Ra2+ {[%clk 0:00:55.5]} 51. Kd1 {[%clk 0:00:14.7]}
51... Ra8 {[%clk 0:00:56]} 52. Kc2 {[%clk 0:00:14.6]} 52... Kf6 {[%clk
0:00:54.3]} 53. Kd1 {[%clk 0:00:13.4]} 53... Ra7 {[%clk 0:00:53.3]} 54. Kc2
{[%clk 0:00:13.1]} 54... Ra1 {[%clk 0:00:54.1]} 55. Kd1 {[%clk 0:00:10.2]} 55...
Kg7 {[%clk 0:00:51.5]} 56. g4 {[%clk 0:00:06.9]} 56... Kf6 {[%clk 0:00:46.4]}
57. Kc2 {[%clk 0:00:05]} 57... Ra8 {[%clk 0:00:43.4]} 58. Kd1 {[%clk 0:00:03.1]}
58... Ke6 {[%clk 0:00:44.1]} 59. Rh2 {[%clk 0:00:02.9]} 59... Ra1 {[%clk
0:00:41.8]} 60. Re2 {[%clk 0:00:03.5]} 60... Ra8 {[%clk 0:00:36.7]} 61. Rg2
{[%clk 0:00:04.5]} 61... Rh8 {[%clk 0:00:35.9]} 62. gxf5+ {[%clk 0:00:05.8]}
62... gxf5 {[%clk 0:00:36.6]} 63. Rg6+ {[%clk 0:00:06.7]} 63... Kf7 {[%clk
0:00:37.5]} 64. Rg5 {[%clk 0:00:07.7]} 64... Kf6 {[%clk 0:00:37.6]} 65. Rg3
{[%clk 0:00:09.2]} 65... Ra8 {[%clk 0:00:35.6]} 66. Rg2 {[%clk 0:00:07.9]} 66...
Ra1 {[%clk 0:00:33.4]} 67. Re2 {[%clk 0:00:08.6]} 67... Kg6 {[%clk 0:00:32.8]}
68. Rg2+ {[%clk 0:00:09.8]} 68... Kh6 {[%clk 0:00:33.3]} 69. Re2 {[%clk
0:00:07.3]} 69... Kh5 {[%clk 0:00:33.2]} 70. Kc2 {[%clk 0:00:08.6]} 70... Ra2+
{[%clk 0:00:31.7]} 71. Kd1 {[%clk 0:00:10]} 71... Rxe2 {[%clk 0:00:32.7]} 72.
Kxe2 {[%clk 0:00:11.9]} 72... Kh4 {[%clk 0:00:34.1]} 73. Bd2 {[%clk 0:00:11.9]}
73... Kxh3 {[%clk 0:00:34.4]} 74. Bc1 {[%clk 0:00:13.8]} 74... Kg4 {[%clk
0:00:30.1]} 75. Bd2 {[%clk 0:00:14.7]} 75... Kg3 {[%clk 0:00:31.3]} 76. Bc1
{[%clk 0:00:15.5]} 76... e3 {[%clk 0:00:31.8]} 77. Kf1 {[%clk 0:00:06.3]} 77...
Kxf4 {[%clk 0:00:31.3]} 78. Ke1 {[%clk 0:00:07]} 78... Ke4 {[%clk 0:00:32.5]}
79. Ke2 {[%clk 0:00:07.9]} 79... f4 {[%clk 0:00:33.8]} 80. Kf1 {[%clk
0:00:09.5]} 80... f3 {[%clk 0:00:35.1]} 81. Bd2 {[%clk 0:00:10.6]} 81... e2+
{[%clk 0:00:30.2]} 82. Ke1 {[%clk 0:00:12]} 82... Kd3 {[%clk 0:00:30.1]} 83. Be3
{[%clk 0:00:12.5]} 83... Bc3+ {[%clk 0:00:31.4]} 0-1

[Event "*** MasterClass Titled Tuesday Blitz"]
[Site "Chess.com"]
[Date "2017.12.12"]
[Round "3"]
[White "Quiet_Desperation"]
[Black "NewBornNow"]
[Result "0-1"]
[WhiteElo "2372"]
[BlackElo "2593"]
[TimeControl "180+2"]
[EndTime "13:30:44 PST"]
[Termination "NewBornNow won by resignation"]

1. e4 {[%clk 0:03:01.9]} 1... c6 {[%clk 0:03:00]} 2. Nc3 {[%clk 0:03:00.2]} 2...
d5 {[%clk 0:03:00.4]} 3. Nf3 {[%clk 0:03:01.8]} 3... Bg4 {[%clk 0:03:00.6]} 4.
h3 {[%clk 0:03:02.9]} 4... Bxf3 {[%clk 0:03:01.4]} 5. Qxf3 {[%clk 0:03:04.8]}
5... e6 {[%clk 0:03:02.2]} 6. exd5 {[%clk 0:03:01.7]} 6... cxd5 {[%clk 0:03:02]}
7. d4 {[%clk 0:03:01.2]} 7... Nc6 {[%clk 0:03:02.7]} 8. Be3 {[%clk 0:03:02.2]}
8... Bb4 {[%clk 0:02:58.5]} 9. Bd3 {[%clk 0:03:01.7]} 9... Nf6 {[%clk
0:02:52.1]} 10. O-O {[%clk 0:03:02.3]} 10... O-O {[%clk 0:02:50.8]} 11. Ne2
{[%clk 0:03:00.1]} 11... Bd6 {[%clk 0:02:46.9]} 12. c3 {[%clk 0:03:00.6]} 12...
e5 {[%clk 0:02:45.8]} 13. Bg5 {[%clk 0:02:36.1]} 13... e4 {[%clk 0:02:45.6]} 14.
Bxf6 {[%clk 0:02:37.3]} 14... exf3 {[%clk 0:02:45.1]} 15. Bxd8 {[%clk
0:02:37.8]} 15... fxe2 {[%clk 0:02:46]} 16. Bxe2 {[%clk 0:02:39]} 16... Raxd8
{[%clk 0:02:46]} 17. Bf3 {[%clk 0:02:40.9]} 17... Bc7 {[%clk 0:02:42.4]} 18.
Rfe1 {[%clk 0:02:41.9]} 18... g6 {[%clk 0:02:38.5]} 19. Re2 {[%clk 0:02:40.9]}
19... Kg7 {[%clk 0:02:39.3]} 20. Rae1 {[%clk 0:02:41.9]} 20... h5 {[%clk
0:02:37.9]} 21. g3 {[%clk 0:02:43.2]} 21... h4 {[%clk 0:02:37.3]} 22. Kg2 {[%clk
0:02:42.2]} 22... hxg3 {[%clk 0:02:37.1]} 23. fxg3 {[%clk 0:02:44.1]} 23... b5
{[%clk 0:02:32.9]} 24. a3 {[%clk 0:02:44.7]} 24... a5 {[%clk 0:02:32.6]} 25. h4
{[%clk 0:02:42.2]} 25... b4 {[%clk 0:02:33.2]} 26. Rc1 {[%clk 0:02:39.9]} 26...
bxa3 {[%clk 0:02:30.1]} 27. bxa3 {[%clk 0:02:40.5]} 27... Bd6 {[%clk 0:02:23.1]}
28. a4 {[%clk 0:02:40.6]} 28... Ne7 {[%clk 0:02:21.3]} 29. g4 {[%clk 0:02:38.2]}
29... Rb8 {[%clk 0:02:20.9]} 30. c4 {[%clk 0:02:36.7]} 30... dxc4 {[%clk
0:02:19.8]} 31. Rxc4 {[%clk 0:02:38.6]} 31... Rfc8 {[%clk 0:02:17.1]} 32. Rxc8
{[%clk 0:02:38.7]} 32... Rxc8 {[%clk 0:02:16.8]} 33. Rb2 {[%clk 0:02:39.3]}
33... Rc4 {[%clk 0:02:14.8]} 0-1

[Event "*** MasterClass Titled Tuesday Blitz"]
[Site "Chess.com"]
[Date "2017.12.12"]
[Round "3"]
[White "jcibarra"]
[Black "DrVelja"]
[Result "1-0"]
[WhiteElo "2697"]
[BlackElo "2548"]
[TimeControl "180+2"]
[EndTime "13:31:00 PST"]
[Termination "jcibarra won by resignation"]

1. e4 {[%clk 0:03:01.9]} 1... c5 {[%clk 0:03:01.4]} 2. Nf3 {[%clk 0:03:02.7]}
2... e6 {[%clk 0:03:03]} 3. c3 {[%clk 0:03:02.7]} 3... Nf6 {[%clk 0:03:03.9]} 4.
e5 {[%clk 0:03:03.7]} 4... Nd5 {[%clk 0:03:05.5]} 5. d4 {[%clk 0:03:05.3]} 5...
cxd4 {[%clk 0:03:07.4]} 6. cxd4 {[%clk 0:03:06.8]} 6... d6 {[%clk 0:03:09.3]} 7.
a3 {[%clk 0:03:06.4]} 7... Be7 {[%clk 0:03:09.2]} 8. Bd3 {[%clk 0:03:07.3]} 8...
O-O {[%clk 0:03:09.5]} 9. O-O {[%clk 0:03:08.6]} 9... Nc6 {[%clk 0:03:10.4]} 10.
Qc2 {[%clk 0:03:08.2]} 10... g6 {[%clk 0:03:02.9]} 11. Bh6 {[%clk 0:03:09]}
11... Re8 {[%clk 0:03:04]} 12. Nc3 {[%clk 0:03:10.5]} 12... Nxc3 {[%clk
0:02:59.7]} 13. Qxc3 {[%clk 0:03:11]} 13... dxe5 {[%clk 0:02:41.1]} 14. dxe5
{[%clk 0:03:11.2]} 14... Bd7 {[%clk 0:02:41.8]} 15. Be4 {[%clk 0:03:07.8]} 15...
Qb6 {[%clk 0:02:39.1]} 16. Rfd1 {[%clk 0:03:04.1]} 16... Rad8 {[%clk 0:02:38.6]}
17. h4 {[%clk 0:02:54.7]} 17... Bc5 {[%clk 0:02:26.8]} 18. Rd2 {[%clk
0:02:41.1]} 18... Bc8 {[%clk 0:02:21.3]} 19. b4 {[%clk 0:02:40.3]} 19... Rxd2
{[%clk 0:02:16.7]} 20. bxc5 {[%clk 0:02:35.5]} 20... Qb2 {[%clk 0:01:06.6]} 21.
Bxd2 {[%clk 0:02:33.8]} 1-0

[Event "*** MasterClass Titled Tuesday Blitz"]
[Site "Chess.com"]
[Date "2017.12.12"]
[Round "3"]
[White "Fighterman91"]
[Black "JohanSalomon"]
[Result "1-0"]
[WhiteElo "2498"]
[BlackElo "2500"]
[TimeControl "180+2"]
[EndTime "13:32:00 PST"]
[Termination "Fighterman91 won by resignation"]

1. e4 {[%clk 0:03:01.9]} 1... e5 {[%clk 0:03:00.7]} 2. Nf3 {[%clk 0:03:03.1]}
2... Nc6 {[%clk 0:03:02.1]} 3. d4 {[%clk 0:03:04.6]} 3... exd4 {[%clk
0:03:03.5]} 4. Nxd4 {[%clk 0:03:06.3]} 4... Qf6 {[%clk 0:03:04.9]} 5. Nb5 {[%clk
0:03:00]} 5... Bb4+ {[%clk 0:03:00]} 6. N1c3 {[%clk 0:02:56.7]} 6... Ba5 {[%clk
0:03:00.8]} 7. Bd2 {[%clk 0:02:38.1]} 7... Nge7 {[%clk 0:02:52.5]} 8. Nd5 {[%clk
0:02:19.9]} 8... Bxd2+ {[%clk 0:02:49.6]} 9. Qxd2 {[%clk 0:02:17.5]} 9... Nxd5
{[%clk 0:02:47.6]} 10. exd5 {[%clk 0:02:18.1]} 10... Qe5+ {[%clk 0:02:27.2]} 11.
Qe2 {[%clk 0:01:55]} 11... Kd8 {[%clk 0:01:56.4]} 12. O-O-O {[%clk 0:01:40]}
12... Qxe2 {[%clk 0:01:52.4]} 13. Bxe2 {[%clk 0:01:41.9]} 13... Ne5 {[%clk
0:01:44.4]} 14. d6 {[%clk 0:01:43.2]} 14... c6 {[%clk 0:01:38.2]} 15. Nc7 {[%clk
0:01:44.2]} 15... Rb8 {[%clk 0:01:39]} 16. f4 {[%clk 0:01:45.5]} 16... Ng6
{[%clk 0:01:37.8]} 17. g3 {[%clk 0:01:44.4]} 17... b5 {[%clk 0:01:29.5]} 18.
Rhe1 {[%clk 0:01:42.8]} 18... Rb7 {[%clk 0:01:17.6]} 19. Bh5 {[%clk 0:01:43.2]}
19... Rxc7 {[%clk 0:01:10.8]} 20. dxc7+ {[%clk 0:01:45.1]} 20... Kxc7 {[%clk
0:01:10.7]} 21. f5 {[%clk 0:01:46.8]} 21... Nf8 {[%clk 0:01:06.7]} 1-0

[Event "*** MasterClass Titled Tuesday Blitz"]
[Site "Chess.com"]
[Date "2017.12.12"]
[Round "3"]
[White "SenseiJulio"]
[Black "kleinebeer98"]
[Result "1-0"]
[WhiteElo "2506"]
[BlackElo "2490"]
[TimeControl "180+2"]
[EndTime "13:32:37 PST"]
[Termination "SenseiJulio won by resignation"]

1. Nf3 {[%clk 0:03:00.1]} 1... Nf6 {[%clk 0:02:59.1]} 2. e3 {[%clk 0:02:58.7]}
2... e6 {[%clk 0:02:59.4]} 3. d4 {[%clk 0:02:52.7]} 3... b6 {[%clk 0:02:59.3]}
4. c4 {[%clk 0:02:48.9]} 4... Bb7 {[%clk 0:02:57.9]} 5. Nc3 {[%clk 0:02:49.4]}
5... Bb4 {[%clk 0:02:48]} 6. Bd2 {[%clk 0:02:50.1]} 6... O-O {[%clk 0:02:47.4]}
7. Bd3 {[%clk 0:02:44.2]} 7... d5 {[%clk 0:02:31.2]} 8. cxd5 {[%clk 0:02:40.4]}
8... exd5 {[%clk 0:02:31.3]} 9. Rc1 {[%clk 0:02:41.8]} 9... a6 {[%clk
0:02:30.6]} 10. O-O {[%clk 0:02:40.2]} 10... Re8 {[%clk 0:02:28.7]} 11. Ne5
{[%clk 0:02:36.7]} 11... Nbd7 {[%clk 0:02:23.2]} 12. f4 {[%clk 0:02:37.6]} 12...
Bd6 {[%clk 0:02:11.8]} 13. Be1 {[%clk 0:02:37.1]} 13... c5 {[%clk 0:02:11]} 14.
Bh4 {[%clk 0:02:35.8]} 14... b5 {[%clk 0:01:51.5]} 15. Nxd7 {[%clk 0:02:07.2]}
15... Qxd7 {[%clk 0:01:53.4]} 16. Bxf6 {[%clk 0:02:08.2]} 16... gxf6 {[%clk
0:01:55]} 17. Qh5 {[%clk 0:02:09.4]} 17... Rxe3 {[%clk 0:01:46.6]} 18. Qxh7+
{[%clk 0:02:06.2]} 18... Kf8 {[%clk 0:01:47.8]} 19. Rce1 {[%clk 0:01:49.4]}
19... cxd4 {[%clk 0:01:39]} 20. Ne2 {[%clk 0:01:42.9]} 20... Bc5 {[%clk
0:01:23.7]} 21. Ng3 {[%clk 0:01:41.9]} 21... Ke7 {[%clk 0:01:09.3]} 22. Nf5+
{[%clk 0:01:31]} 22... Kd8 {[%clk 0:01:10.6]} 23. Rc1 {[%clk 0:01:26.1]} 23...
Bb6 {[%clk 0:00:59.7]} 24. Qh8+ {[%clk 0:01:21.6]} 1-0

[Event "*** MasterClass Titled Tuesday Blitz"]
[Site "Chess.com"]
[Date "2017.12.12"]
[Round "3"]
[White "viktoriani"]
[Black "rst2003"]
[Result "0-1"]
[WhiteElo "2058"]
[BlackElo "2189"]
[TimeControl "180+2"]
[EndTime "13:32:41 PST"]
[Termination "rst2003 won by resignation"]

1. d4 {[%clk 0:03:01.9]} 1... Nf6 {[%clk 0:02:59.5]} 2. c4 {[%clk 0:03:03.4]}
2... g6 {[%clk 0:03:00.7]} 3. Nc3 {[%clk 0:03:05]} 3... d5 {[%clk 0:03:01.5]} 4.
g3 {[%clk 0:03:05.7]} 4... Bg7 {[%clk 0:03:00.8]} 5. Bg2 {[%clk 0:03:07.2]} 5...
dxc4 {[%clk 0:02:59.7]} 6. Nf3 {[%clk 0:03:07.6]} 6... O-O {[%clk 0:03:00.3]} 7.
O-O {[%clk 0:03:05.7]} 7... c6 {[%clk 0:03:00.4]} 8. Ne5 {[%clk 0:03:06.4]} 8...
Nbd7 {[%clk 0:02:57.3]} 9. Nxc4 {[%clk 0:03:06.3]} 9... Nb6 {[%clk 0:02:55.5]}
10. Ne5 {[%clk 0:03:05]} 10... Be6 {[%clk 0:02:55.7]} 11. e4 {[%clk 0:03:03.2]}
11... Qc7 {[%clk 0:02:54.3]} 12. Bf4 {[%clk 0:03:03.3]} 12... Qd8 {[%clk
0:02:52.2]} 13. a4 {[%clk 0:02:53.6]} 13... Nh5 {[%clk 0:02:51.2]} 14. a5 {[%clk
0:02:47.5]} 14... Nc4 {[%clk 0:02:45.1]} 15. a6 {[%clk 0:02:30.5]} 15... Qc8
{[%clk 0:02:26.4]} 16. axb7 {[%clk 0:02:26]} 16... Qxb7 {[%clk 0:02:28.3]} 17.
Nxc6 {[%clk 0:02:22.5]} 17... Nxf4 {[%clk 0:02:23.7]} 18. gxf4 {[%clk
0:02:22.9]} 18... Nxb2 {[%clk 0:02:19.7]} 19. Qc2 {[%clk 0:02:17.3]} 19... Qxc6
{[%clk 0:02:20.2]} 20. e5 {[%clk 0:01:40.9]} 20... Qb6 {[%clk 0:02:13.7]} 21.
Rfb1 {[%clk 0:01:34.5]} 21... Rab8 {[%clk 0:02:02.7]} 22. Na4 {[%clk 0:01:24.6]}
22... Nxa4 {[%clk 0:01:38.1]} 23. Rxb6 {[%clk 0:01:24.7]} 23... Nxb6 {[%clk
0:01:39.3]} 24. Rxa7 {[%clk 0:01:21.9]} 24... Bd5 {[%clk 0:01:40.4]} 25. Rxe7
{[%clk 0:01:17.9]} 25... Bxg2 {[%clk 0:01:38.4]} 26. Kxg2 {[%clk 0:01:18.4]}
26... Nd5 {[%clk 0:01:39.4]} 27. Rd7 {[%clk 0:01:15]} 27... Nxf4+ {[%clk
0:01:40.5]} 28. Kf3 {[%clk 0:01:15.8]} 28... Ne6 {[%clk 0:01:38.1]} 29. d5
{[%clk 0:01:02]} 29... Nd4+ {[%clk 0:01:38.4]} 0-1

[Event "*** MasterClass Titled Tuesday Blitz"]
[Site "Chess.com"]
[Date "2017.12.12"]
[Round "3"]
[White "Parhamov"]
[Black "grzechu96"]
[Result "0-1"]
[WhiteElo "2742"]
[BlackElo "2447"]
[TimeControl "180+2"]
[EndTime "13:32:42 PST"]
[Termination "grzechu96 won by checkmate"]

1. Nf3 {[%clk 0:03:01.9]} 1... Nf6 {[%clk 0:03:00.2]} 2. c4 {[%clk 0:03:01.7]}
2... g6 {[%clk 0:03:00.1]} 3. d4 {[%clk 0:03:01.8]} 3... Bg7 {[%clk 0:03:00.8]}
4. Nc3 {[%clk 0:03:02.7]} 4... d5 {[%clk 0:03:01.4]} 5. Bg5 {[%clk 0:03:02.2]}
5... Ne4 {[%clk 0:03:01.7]} 6. cxd5 {[%clk 0:03:01.2]} 6... Nxg5 {[%clk
0:03:02.5]} 7. Nxg5 {[%clk 0:03:02.4]} 7... e6 {[%clk 0:03:04]} 8. Qd2 {[%clk
0:03:03.7]} 8... exd5 {[%clk 0:03:02.5]} 9. Qe3+ {[%clk 0:03:04.9]} 9... Kf8
{[%clk 0:03:03.9]} 10. Qf4 {[%clk 0:03:03.1]} 10... Bf6 {[%clk 0:03:04.4]} 11.
h4 {[%clk 0:03:03.8]} 11... h6 {[%clk 0:03:05.2]} 12. Nxd5 {[%clk 0:03:05]}
12... Bxg5 {[%clk 0:02:55.5]} 13. Qxc7 {[%clk 0:03:04]} 13... Qxd5 {[%clk
0:02:44.8]} 14. hxg5 {[%clk 0:03:03.1]} 14... Nc6 {[%clk 0:02:46]} 15. gxh6
{[%clk 0:02:55.9]} 15... Bf5 {[%clk 0:02:30.8]} 16. e3 {[%clk 0:02:55.8]} 16...
Rc8 {[%clk 0:02:31.4]} 17. Qxb7 {[%clk 0:02:28.1]} 17... Qa5+ {[%clk 0:02:22.6]}
18. Ke2 {[%clk 0:02:25.2]} 18... Nxd4+ {[%clk 0:01:39.7]} 19. exd4 {[%clk
0:02:25.3]} 19... Bg4+ {[%clk 0:01:05.1]} 20. Kd3 {[%clk 0:01:53.5]} 20... Bf5+
{[%clk 0:01:03.4]} 21. Ke3 {[%clk 0:01:54.1]} 21... Re8+ {[%clk 0:01:02.2]} 22.
Kf4 {[%clk 0:01:45.6]} 22... Qd2+ {[%clk 0:00:59]} 23. Kf3 {[%clk 0:01:41.9]}
23... Qxd4 {[%clk 0:00:54.9]} 24. Qc7 {[%clk 0:01:28.9]} 24... Qg4# {[%clk
0:00:54.2]} 0-1

[Event "*** MasterClass Titled Tuesday Blitz"]
[Site "Chess.com"]
[Date "2017.12.12"]
[Round "3"]
[White "Divertissement"]
[Black "ChristopherYoo"]
[Result "1-0"]
[WhiteElo "2397"]
[BlackElo "2255"]
[TimeControl "180+2"]
[EndTime "13:32:43 PST"]
[Termination "Divertissement won by resignation"]

1. e4 {[%clk 0:02:52.7]} 1... c5 {[%clk 0:02:59.5]} 2. Nf3 {[%clk 0:02:53]} 2...
d6 {[%clk 0:02:59.7]} 3. c3 {[%clk 0:02:53]} 3... Nf6 {[%clk 0:02:59.6]} 4. h3
{[%clk 0:02:53.9]} 4... g6 {[%clk 0:02:59.9]} 5. Bd3 {[%clk 0:02:54.9]} 5... Bg7
{[%clk 0:03:00.5]} 6. O-O {[%clk 0:02:55.2]} 6... O-O {[%clk 0:03:01]} 7. Bc2
{[%clk 0:02:56.7]} 7... b6 {[%clk 0:03:00]} 8. d4 {[%clk 0:02:57.7]} 8... Bb7
{[%clk 0:03:00.6]} 9. d5 {[%clk 0:02:58.9]} 9... Qc7 {[%clk 0:02:41.3]} 10. a4
{[%clk 0:02:57]} 10... a6 {[%clk 0:02:41.4]} 11. Na3 {[%clk 0:02:53.5]} 11...
Nbd7 {[%clk 0:02:41.3]} 12. Re1 {[%clk 0:02:50.6]} 12... Rad8 {[%clk 0:02:41]}
13. Bf4 {[%clk 0:02:34.3]} 13... Nh5 {[%clk 0:02:20.6]} 14. Bg5 {[%clk
0:02:28.9]} 14... Bf6 {[%clk 0:02:04.2]} 15. Qd2 {[%clk 0:02:27.4]} 15... e6
{[%clk 0:01:54.6]} 16. Bxf6 {[%clk 0:02:16.6]} 16... Nhxf6 {[%clk 0:01:53.7]}
17. c4 {[%clk 0:02:15.5]} 17... e5 {[%clk 0:01:42.1]} 18. Qh6 {[%clk 0:02:01.1]}
18... Rb8 {[%clk 0:01:27.6]} 19. Bd3 {[%clk 0:02:00.2]} 19... Qd8 {[%clk
0:01:27.7]} 20. Nc2 {[%clk 0:02:00.3]} 20... Kh8 {[%clk 0:01:25.8]} 21. Ne3
{[%clk 0:02:00.9]} 21... Rg8 {[%clk 0:01:26]} 22. g4 {[%clk 0:01:50.7]} 22...
Qf8 {[%clk 0:01:24.7]} 23. Qh4 {[%clk 0:01:42]} 23... Qg7 {[%clk 0:01:24.3]} 24.
Kg2 {[%clk 0:01:38.1]} 24... Nf8 {[%clk 0:01:08.5]} 25. Rh1 {[%clk 0:01:37.4]}
25... Bc8 {[%clk 0:01:04]} 26. Qg3 {[%clk 0:01:27.3]} 26... g5 {[%clk
0:01:01.9]} 27. Nf5 {[%clk 0:01:26.4]} 27... Be6 {[%clk 0:01:02.3]} 28. Nxg7
{[%clk 0:01:25.1]} 1-0

[Event "*** MasterClass Titled Tuesday Blitz"]
[Site "Chess.com"]
[Date "2017.12.12"]
[Round "3"]
[White "A-Fier"]
[Black "bascheyaro"]
[Result "1-0"]
[WhiteElo "2619"]
[BlackElo "2634"]
[TimeControl "180+2"]
[EndTime "13:33:22 PST"]
[Termination "A-Fier won by resignation"]

1. d4 {[%clk 0:03:01.6]} 1... Nf6 {[%clk 0:03:00.8]} 2. c4 {[%clk 0:03:00.6]}
2... e6 {[%clk 0:03:02]} 3. Nf3 {[%clk 0:03:01.4]} 3... d5 {[%clk 0:03:03.3]} 4.
Nc3 {[%clk 0:03:02]} 4... Be7 {[%clk 0:03:04.2]} 5. Bf4 {[%clk 0:03:02.5]} 5...
c6 {[%clk 0:03:05.1]} 6. e3 {[%clk 0:03:01.7]} 6... Nbd7 {[%clk 0:03:06.2]} 7.
h3 {[%clk 0:03:01.7]} 7... O-O {[%clk 0:03:06.6]} 8. Qc2 {[%clk 0:03:02.8]} 8...
h6 {[%clk 0:03:07.1]} 9. Rd1 {[%clk 0:03:03.8]} 9... a6 {[%clk 0:03:08.1]} 10.
b3 {[%clk 0:03:03.3]} 10... b5 {[%clk 0:02:49]} 11. c5 {[%clk 0:03:02.7]} 11...
b4 {[%clk 0:02:50.3]} 12. Na4 {[%clk 0:03:03.1]} 12... a5 {[%clk 0:02:50.9]} 13.
Be2 {[%clk 0:03:02.7]} 13... Ba6 {[%clk 0:02:52]} 14. O-O {[%clk 0:03:03.2]}
14... Bxe2 {[%clk 0:02:46.8]} 15. Qxe2 {[%clk 0:03:05.1]} 15... Ne4 {[%clk
0:02:48.2]} 16. Ne1 {[%clk 0:03:00.3]} 16... e5 {[%clk 0:02:47.1]} 17. Bh2
{[%clk 0:02:49.4]} 17... exd4 {[%clk 0:02:47.1]} 18. exd4 {[%clk 0:02:50.7]}
18... Re8 {[%clk 0:02:43.7]} 19. Nf3 {[%clk 0:02:51]} 19... Bf6 {[%clk 0:02:39]}
20. Qd3 {[%clk 0:02:48.3]} 20... Re6 {[%clk 0:02:37.4]} 21. Ne1 {[%clk
0:02:40.6]} 21... Qe8 {[%clk 0:02:01]} 22. Nc2 {[%clk 0:02:41.3]} 22... Bd8
{[%clk 0:01:54.4]} 23. Ne3 {[%clk 0:02:37.4]} 23... Ra7 {[%clk 0:01:50]} 24. Nf5
{[%clk 0:02:35.9]} 24... Rf6 {[%clk 0:01:40.6]} 25. Nd6 {[%clk 0:02:31.9]} 25...
Nxd6 {[%clk 0:01:41.4]} 26. cxd6 {[%clk 0:02:25.6]} 26... Nb6 {[%clk 0:01:35.6]}
27. Nc5 {[%clk 0:02:21.3]} 27... Qf8 {[%clk 0:01:16.4]} 28. Rfe1 {[%clk
0:02:18.9]} 28... g6 {[%clk 0:01:14.4]} 29. Re2 {[%clk 0:02:15.6]} 29... Rxd6
{[%clk 0:01:15.3]} 30. Rde1 {[%clk 0:02:02.1]} 30... Re7 {[%clk 0:01:08.7]} 31.
Bxd6 {[%clk 0:01:38.7]} 31... Rxe2 {[%clk 0:01:09.5]} 32. Qxe2 {[%clk
0:01:40.2]} 32... Qxd6 {[%clk 0:01:10]} 33. Qe8+ {[%clk 0:01:41.6]} 33... Qf8
{[%clk 0:00:58.4]} 34. Qxc6 {[%clk 0:01:40.9]} 1-0